bitfinex/quotes_BTCUSD_20240607
["timestamp","ask_amount","ask_price","bid_price","bid_amount"]
[1717766387832,0.00862,71343.0,71342.0,0.89644734]
[1717766388613,0.00862,71343.0,71342.0,0.91933159]
[1717766388777,0.00862,71343.0,71342.0,0.92033159]
[1717766388982,0.00862,71343.0,71342.0,0.92030407]
[1717766389181,0.00862,71343.0,71342.0,0.89842133]
[1717766389386,0.00862,71343.0,71342.0,1.06892133]
[1717766389584,0.00862,71343.0,71342.0,1.06992133]
[1717766389795,0.00862,71343.0,71342.0,1.08992133]
[1717766390201,0.00862,71343.0,71342.0,1.34926033]
[1717766390410,0.00862,71343.0,71342.0,0.89842133]
[1717766390607,0.00862,71343.0,71342.0,0.89942133]
[1717766390809,0.00862,71343.0,71342.0,0.66282133]
[1717766391231,0.00862,71343.0,71342.0,0.66482133]
[1717766393154,0.00862,71343.0,71342.0,0.66382133]
[1717766393374,0.00862,71343.0,71342.0,0.66282133]
[1717766393612,0.00862,71343.0,71342.0,0.66482133]
[1717766393824,0.00862,71343.0,71342.0,0.91272133]
[1717766396472,0.00862,71343.0,71342.0,0.66482133]
[1717766397043,0.00862,71343.0,71342.0,1.07232133]
[1717766397682,0.00862,71343.0,71342.0,1.07228117]
[1717766397884,0.00862,71343.0,71342.0,1.35262017]
[1717766398099,0.00862,71343.0,71342.0,0.52361217]
[1717766398326,0.25072,71343.0,71342.0,0.52361217]
[1717766398714,0.00862,71343.0,71342.0,0.52361217]
[1717766398926,0.00862,71343.0,71342.0,0.5444494]
[1717766399340,0.00862,71343.0,71342.0,0.52461217]
[1717766399549,0.00862,71343.0,71342.0,0.52361217]
[1717766399698,0.00862,71343.0,71342.0,0.52261217]
[1717766399896,0.00862,71343.0,71342.0,0.52361217]
[1717766400126,0.00862,71343.0,71342.0,0.52461217]
[1717766400333,0.00862,71343.0,71342.0,0.66478117]
[1717766400535,0.00862,71343.0,71342.0,0.66378117]
[1717766400891,0.00862,71343.0,71342.0,0.66478117]
[1717766401717,0.00862,71343.0,71342.0,0.52361217]
[1717766401947,0.00862,71343.0,71342.0,0.52332905]
[1717766402195,0.00862,71343.0,71342.0,0.66449805]
[1717766402633,0.00862,71343.0,71342.0,0.74769805]
[1717766403735,0.00862,71343.0,71342.0,0.90609805]
[1717766403984,0.00862,71343.0,71342.0,1.18643705]
[1717766404112,0.00862,71343.0,71342.0,1.18643815]
[1717766404521,0.00862,71343.0,71342.0,1.18543815]
[1717766404744,0.00862,71343.0,71342.0,1.18638415]
[1717766405593,0.00862,71343.0,71342.0,1.30938415]
[1717766406126,0.00862,71343.0,71342.0,1.02904515]
[1717766406531,0.00862,71343.0,71342.0,1.02704515]
[1717766406733,0.00862,71343.0,71342.0,1.30638415]
[1717766407161,0.00862,71343.0,71342.0,1.30738415]
[1717766408370,0.00862,71343.0,71342.0,1.30735932]
[1717766408816,0.00862,71343.0,71342.0,1.30935932]
[1717766409032,0.00862,71343.0,71342.0,1.58849912]
[1717766409796,0.00862,71343.0,71342.0,0.9458227]
[1717766410014,0.00862,71343.0,71342.0,1.58919539]
[1717766411390,0.00862,71343.0,71342.0,1.3093459]
[1717766414861,0.00862,71343.0,71342.0,1.38157414]
[1717766415607,0.00862,71343.0,71342.0,1.3093459]
[1717766417663,0.00862,71343.0,71342.0,1.38157414]
[1717766420283,0.00862,71343.0,71342.0,1.66191314]
[1717766420499,0.00862,71343.0,71342.0,1.94225214]
[1717766420911,0.00762,71343.0,71342.0,2.09025214]
[1717766422032,0.00863,71347.0,71346.0,0.981134]
[1717766422214,0.00863,71347.0,71346.0,1.84247613]
[1717766422422,0.00863,71347.0,71346.0,1.85488172]
[1717766422862,0.00863,71347.0,71346.0,2.02538172]
[1717766424131,0.00863,71347.0,71346.0,2.02638172]
[1717766424327,0.00863,71347.0,71346.0,1.85588172]
[1717766424644,0.00863,71347.0,71346.0,1.85788172]
[1717766425928,0.00863,71347.0,71346.0,1.32415772]
[1717766426559,0.16223,71347.0,71346.0,0.66350972]
[1717766426777,0.23833,71347.0,71346.0,0.52334772]
[1717766427025,0.23833,71347.0,71346.0,0.3052338]
[1717766427439,0.37849,71347.0,71346.0,0.16081487]
[1717766427633,0.37849,71347.0,71346.0,0.15981487]
[1717766427869,0.37849,71347.0,71346.0,0.15781487]
[1717766429242,0.37849,71347.0,71346.0,0.16081487]
[1717766429464,0.23833,71347.0,71346.0,0.3052338]
[1717766429814,0.00863,71347.0,71346.0,0.3032338]
[1717766429958,0.00863,71347.0,71346.0,0.3042338]
[1717766430146,0.00863,71347.0,71346.0,0.4443958]
[1717766430346,0.00863,71347.0,71346.0,0.4433958]
[1717766430844,0.00863,71347.0,71346.0,0.4443958]
[1717766431049,0.00863,71347.0,71346.0,0.4423958]
[1717766431200,0.00863,71347.0,71346.0,0.4433958]
[1717766431399,0.00863,71347.0,71346.0,0.43894618]
[1717766432401,0.00863,71347.0,71346.0,0.29878418]
[1717766432810,0.25223,71347.0,71346.0,0.29878418]
[1717766433168,0.25223,71347.0,71346.0,0.29182821]
[1717766433363,0.25223,71347.0,71346.0,0.28982821]
[1717766433540,0.25223,71347.0,71346.0,0.29978158]
[1717766433949,0.25223,71347.0,71346.0,0.30178158]
[1717766434105,0.25223,71347.0,71346.0,0.30078158]
[1717766434308,0.25223,71347.0,71346.0,0.3008092]
[1717766434507,0.25223,71347.0,71346.0,0.1563723]
[1717766434772,0.25223,71347.0,71346.0,0.30180708]
[1717766434970,0.25223,71347.0,71346.0,0.30080708]
[1717766435171,0.25223,71347.0,71346.0,0.30079962]
[1717766436606,0.25223,71347.0,71346.0,0.30279962]
[1717766436806,0.00863,71347.0,71346.0,0.30279962]
[1717766437605,0.00863,71347.0,71346.0,0.44296162]
[1717766437833,0.00863,71347.0,71346.0,0.6581059]
[1717766438198,0.00863,71347.0,71346.0,0.6611059]
[1717766439639,0.00863,71347.0,71346.0,0.6591059]
[1717766439841,0.00863,71347.0,71346.0,0.6821059]
[1717766440043,0.00863,71347.0,71346.0,0.6831059]
[1717766440256,0.00863,71347.0,71346.0,0.6811059]
[1717766440462,0.00863,71347.0,71346.0,0.6821059]
[1717766440662,0.00863,71347.0,71346.0,0.68406766]
[1717766441062,0.00863,71347.0,71346.0,0.68306766]
[1717766441263,0.01363,71347.0,71346.0,0.68306766]
[1717766441487,0.01363,71347.0,71346.0,0.68406766]
[1717766444120,0.01363,71347.0,71346.0,0.68009512]
[1717766444824,0.01363,71347.0,71346.0,0.65709512]
[1717766447754,0.01363,71347.0,71346.0,0.65710607]
[1717766449510,0.01363,71347.0,71346.0,0.68010707]
[1717766450012,0.01363,71347.0,71346.0,0.97092236]
[1717766451997,0.01363,71347.0,71346.0,1.25124636]
[1717766452194,0.01363,71347.0,71346.0,1.41094636]
[1717766452397,0.01363,71347.0,71346.0,1.43394636]
[1717766453702,0.01363,71347.0,71346.0,1.43194636]
[1717766453867,0.01363,71347.0,71346.0,1.43294636]
[1717766454306,0.01363,71347.0,71346.0,1.47546309]
[1717766454701,0.01363,71347.0,71346.0,1.75578709]
[1717766454901,0.01363,71347.0,71346.0,1.93368709]
[1717766455466,0.01363,71347.0,71346.0,1.89212575]
[1717766457373,0.01323294,71347.0,71346.0,2.17244975]
[1717766457578,0.01323294,71347.0,71346.0,2.23462556]
[1717766458749,0.00823294,71347.0,71346.0,2.23462556]
[1717766460221,0.00823294,71347.0,71346.0,2.23462947]
[1717766460581,0.00823294,71347.0,71346.0,2.17244975]
[1717766460788,0.00823294,71347.0,71346.0,2.23463431]
[1717766463194,0.00823294,71347.0,71346.0,2.23458133]
[1717766463850,0.00863,71354.0,71350.0,99.99176706]
[1717766464188,0.00863,71354.0,71353.0,0.31491893]
[1717766464362,0.00863,71354.0,71353.0,1.06918094]
[1717766464561,0.00863,71354.0,71353.0,1.09963204]
[1717766465317,0.00863,71354.0,71353.0,1.80037204]
[1717766466439,0.00863,71354.0,71353.0,1.80137204]
[1717766467598,0.00863,71354.0,71353.0,1.80337204]
[1717766470188,0.00863,71354.0,71353.0,1.80334764]
[1717766472018,0.00863,71354.0,71353.0,1.80334509]
[1717766473199,0.00863,71354.0,71353.0,2.04514509]
[1717766473884,0.00863,71354.0,71353.0,1.80334509]
[1717766474093,0.00863,71354.0,71353.0,2.32374109]
[1717766475086,0.00863,71354.0,71353.0,2.32174109]
[1717766475283,0.00863,71354.0,71353.0,2.15124109]
[1717766475689,0.00863,71354.0,71353.0,1.78976834]
[1717766475889,0.00863,71354.0,71353.0,2.15222742]
[1717766476271,0.232,71371.0,71360.0,99.959739]
[1717766476488,0.232,71371.0,71369.0,0.45503493]
[1717766476795,0.232,71371.0,71369.0,0.60647744]
[1717766478647,0.0807,71371.0,71369.0,1.16894344]
[1717766478837,0.1661,71376.0,71369.0,1.16894344]
[1717766479873,0.1661,71376.0,71369.0,1.52150797]
[1717766480060,0.1661,71376.0,71369.0,1.52050797]
[1717766480522,0.1661,71376.0,71369.0,1.49850797]
[1717766480924,0.1661,71376.0,71369.0,1.49650797]
[1717766481140,0.0795,71377.0,71369.0,1.77874097]
[1717766481343,0.0795,71377.0,71369.0,1.52150797]
[1717766481554,0.0795,71377.0,71369.0,1.49850797]
[1717766482656,0.00863,71382.0,71369.0,2.01541115]
[1717766482873,0.00863,71382.0,71369.0,2.03841115]
[1717766483398,0.00863,71382.0,71369.0,1.75717815]
[1717766483821,0.00863,71382.0,71369.0,1.75817815]
[1717766484444,0.00863,71382.0,71369.0,1.67647815]
[1717766484650,0.00863,71382.0,71369.0,1.95471115]
[1717766484846,0.00863,71382.0,71369.0,1.95671115]
[1717766485234,0.00863,71382.0,71369.0,1.95471115]
[1717766485637,0.00863,71382.0,71369.0,1.95671115]
[1717766486425,0.00863,71382.0,71369.0,1.67647815]
[1717766486601,0.00863,71382.0,71369.0,1.67547815]
[1717766486798,0.00863,71382.0,71369.0,1.52047815]
[1717766487000,0.00863,71382.0,71369.0,1.52147815]
[1717766487178,0.00863,71382.0,71369.0,1.80171115]
[1717766488316,0.00863,71382.0,71369.0,2.31624415]
[1717766488941,0.00863,71382.0,71369.0,2.14574415]
[1717766489095,0.00863,71382.0,71369.0,2.31624415]
[1717766489294,0.00863,71382.0,71369.0,2.31424415]
[1717766489793,0.00863,71382.0,71369.0,2.31624415]
[1717766490000,0.00863,71382.0,71371.0,0.664337]
[1717766490205,0.00863,71382.0,71371.0,1.86613227]
[1717766490406,0.00863,71382.0,71371.0,1.87226308]
[1717766490606,0.00863,71382.0,71371.0,1.62826308]
[1717766490824,0.00863,71382.0,71381.0,0.56031893]
[1717766491023,0.00863,71382.0,71381.0,1.75774927]
[1717766491227,0.00863,71382.0,71381.0,2.04405601]
[1717766492326,0.00863,71382.0,71381.0,2.04605601]
[1717766493357,0.00863,71382.0,71381.0,1.80165601]
[1717766495169,0.00863,71382.0,71381.0,2.32304201]
[1717766495487,0.00863,71382.0,71381.0,2.04285601]
[1717766496123,0.00863,71382.0,71381.0,2.32304201]
[1717766496320,0.00863,71382.0,71381.0,2.04285601]
[1717766496491,0.00863,71382.0,71381.0,2.32304201]
[1717766496695,0.00863,71382.0,71381.0,1.80165601]
[1717766496891,0.00863,71382.0,71381.0,1.70855601]
[1717766497096,0.00863,71382.0,71381.0,1.87905601]
[1717766497556,0.00863,71382.0,71381.0,2.15924201]
[1717766497692,0.00863,71382.0,71381.0,1.80165601]
[1717766497900,0.00863,71382.0,71381.0,1.79965601]
[1717766498240,0.00863,71382.0,71381.0,1.80165601]
[1717766498840,0.00863,71382.0,71381.0,1.80065601]
[1717766499133,0.00863,71382.0,71381.0,2.08084201]
[1717766499336,0.00863,71382.0,71381.0,1.80165601]
[1717766499748,0.00863,71382.0,71381.0,2.08184201]
[1717766500330,0.00863,71382.0,71381.0,1.91134201]
[1717766500538,0.00863,71408.0,71407.0,0.420126]
[1717766500806,0.00863,71408.0,71407.0,0.88655795]
[1717766501328,0.08513,71408.0,71407.0,0.88655795]
[1717766501549,0.08513,71408.0,71407.0,0.43597395]
[1717766501750,0.24373,71408.0,71407.0,0.43597395]
[1717766501966,0.24373,71408.0,71407.0,0.43797395]
[1717766502325,0.24373,71408.0,71407.0,0.43597395]
[1717766502766,0.24373,71408.0,71407.0,0.43797395]
[1717766504334,0.24373,71408.0,71407.0,0.71805795]
[1717766504335,0.00863,71408.0,71407.0,0.71805795]
[1717766504556,0.00863,71408.0,71407.0,0.81605795]
[1717766504761,0.00863,71408.0,71407.0,0.81805795]
[1717766504957,0.00863,71408.0,71407.0,0.98955795]
[1717766505670,0.00863,71408.0,71407.0,0.98755795]
[1717766505916,0.00863,71408.0,71407.0,1.01055795]
[1717766506119,0.00863,71408.0,71407.0,1.01255795]
[1717766506321,0.00863,71408.0,71407.0,0.84205795]
[1717766506696,0.00863,71408.0,71407.0,0.89708995]
[1717766507177,0.00863,71408.0,71407.0,0.89808995]
[1717766507601,0.00863,71408.0,71407.0,1.06958995]
[1717766508202,0.00863,71408.0,71407.0,0.87608995]
[1717766508381,0.25403,71408.0,71407.0,0.59600595]
[1717766508576,0.25403,71408.0,71407.0,0.53897395]
[1717766508860,0.25403,71408.0,71407.0,0.53997395]
[1717766509139,0.25403,71408.0,71407.0,0.82005795]
[1717766509333,0.25403,71408.0,71407.0,0.82333471]
[1717766512878,0.25403,71408.0,71407.0,0.54225071]
[1717766513083,0.25403,71408.0,71407.0,0.44225071]
[1717766513287,0.26403,71408.0,71407.0,0.30220871]
[1717766513886,0.27303,71408.0,71407.0,0.30220871]
[1717766514228,0.40407,71408.0,71407.0,0.29173231]
[1717766514601,0.39407,71408.0,71407.0,0.30218077]
[1717766514803,0.25403,71408.0,71407.0,0.30218077]
[1717766514989,0.25403,71408.0,71407.0,0.30018077]
[1717766515193,0.25403,71408.0,71407.0,0.29173231]
[1717766515386,0.39407,71408.0,71407.0,0.30118026]
[1717766515614,0.39407,71408.0,71407.0,0.30018026]
[1717766515815,0.454377,71408.0,71407.0,0.15576133]
[1717766515997,0.0807,71402.0,71397.0,0.02078951]
[1717766516230,0.0807,71400.0,71398.0,0.14441893]
[1717766516429,0.401357,71399.0,71398.0,0.14441893]
[1717766516807,0.401357,71399.0,71383.0,0.43336945]
[1717766516808,0.1592,71393.0,71383.0,0.43336945]
[1717766517018,0.1592,71391.0,71384.0,0.14441893]
[1717766517220,0.07222824,71405.0,71384.0,0.14441893]
[1717766517221,0.2412,71389.0,71384.0,0.14441893]
[1717766517593,0.019,71390.0,71384.0,0.14441893]
[1717766517594,0.1592,71385.0,71384.0,0.14441893]
[1717766517706,0.2404,71385.0,71384.0,0.14441893]
[1717766518168,0.2594,71385.0,71384.0,0.14441893]
[1717766518320,0.373688,71384.0,71374.0,0.001]
[1717766518525,0.1524,71380.0,71375.0,0.14538762]
[1717766518748,0.0812,71379.0,71376.0,0.001]
[1717766518966,0.0812,71379.0,71377.0,0.14440284]
[1717766519518,0.0812,71379.0,71378.0,0.001]
[1717766519714,0.0812,71379.0,71378.0,0.14441893]
[1717766519916,0.0812,71379.0,71378.0,0.14541893]
[1717766520268,0.0823,71386.0,71378.0,0.14541893]
[1717766520448,0.0823,71386.0,71379.0,0.14541893]
[1717766520649,0.0823,71386.0,71381.0,0.001]
[1717766520847,0.0823,71386.0,71382.0,0.14441893]
[1717766521051,0.0823,71386.0,71376.0,0.001]
[1717766521052,0.0818,71380.0,71372.0,0.000946]
[1717766521273,0.0818,71378.0,71376.0,0.001]
[1717766521475,0.0818,71378.0,71377.0,0.14441893]
[1717766521675,0.0818,71378.0,71377.0,0.14541893]
[1717766522635,0.0818,71378.0,71377.0,0.14441893]
[1717766522860,0.0818,71378.0,71377.0,0.14541893]
[1717766523072,0.15724311,71395.0,71387.0,0.001]
[1717766523300,0.15724311,71395.0,71389.0,0.001]
[1717766523301,0.01717711,71395.0,71389.0,0.001]
[1717766523632,0.570073,71410.0,71382.0,0.1705]
[1717766523633,0.076,71405.0,71391.0,0.001]
[1717766523842,0.076,71405.0,71390.0,0.15331352]
[1717766523843,0.076,71399.0,71392.0,0.14541893]
[1717766524134,0.076,71399.0,71393.0,0.009885]
[1717766524342,0.076,71399.0,71394.0,0.14441893]
[1717766524493,0.076,71399.0,71395.0,0.00888267]
[1717766524694,0.076,71399.0,71396.0,0.14441893]
[1717766525047,0.076,71399.0,71397.0,0.00888035]
[1717766525198,0.076,71399.0,71398.0,0.14441893]
[1717766525614,0.2493,71399.0,71398.0,0.00887918]
[1717766525900,0.379357,71399.0,71398.0,0.00887918]
[1717766526114,0.2362,71398.0,71386.0,0.001]
[1717766526243,0.2552,71397.0,71396.0,0.001]
[1717766526473,0.395261,71397.0,71396.0,0.001]
[1717766527767,0.159067,71395.0,71387.0,0.14441893]
[1717766527985,0.140067,71395.0,71387.0,0.14441893]
[1717766528203,0.019,71392.0,71388.0,0.00889549]
[1717766528419,0.2527,71381.0,71372.0,0.000946]
[1717766528641,0.2337,71377.0,71375.0,0.43336945]
[1717766528864,0.2337,71377.0,71376.0,0.2897787]
[1717766529078,0.2337,71377.0,71376.0,0.15259523]
[1717766529513,0.140084,71386.0,71379.0,0.001]
[1717766529781,0.0817,71386.0,71380.0,0.14541893]
[1717766529970,0.0783,71394.0,71389.0,0.001]
[1717766530145,0.0783,71394.0,71390.0,0.14441893]
[1717766530381,0.0783,71394.0,71391.0,0.00818544]
[1717766530560,0.0783,71394.0,71392.0,0.14441893]
[1717766530783,0.0783,71394.0,71393.0,0.00818311]
[1717766531122,0.0783,71394.0,71393.0,0.15260204]
[1717766532375,0.0783,71394.0,71393.0,0.15460204]
[1717766532799,0.0783,71394.0,71393.0,0.15560204]
[1717766533400,0.0973,71394.0,71393.0,0.15560204]
[1717766533620,0.2544,71394.0,71393.0,0.01118311]
[1717766533794,0.584467,71394.0,71393.0,0.01118311]
[1717766534007,0.864602,71394.0,71393.0,0.003]
[1717766534623,0.140089,71384.0,71373.0,0.001]
[1717766534851,0.2401,71383.0,71378.0,0.43336945]
[1717766535068,0.2401,71383.0,71379.0,0.14441893]
[1717766535288,0.2401,71383.0,71379.0,0.1526035]
[1717766536395,0.01,71382.0,71379.0,0.1526035]
[1717766536612,0.02591,71382.0,71379.0,0.01018457]
[1717766536817,0.01,71380.0,71379.0,0.002]
[1717766537035,0.2432,71380.0,71379.0,0.14735822]
[1717766537475,0.2432,71380.0,71379.0,0.01020146]
[1717766537686,0.078,71380.0,71379.0,0.14741893]
[1717766537932,0.0821,71387.0,71383.0,0.001]
[1717766538161,0.0821,71387.0,71386.0,0.001]
[1717766538381,0.0821,71387.0,71386.0,0.2989659]
[1717766538579,0.0821,71387.0,71386.0,0.29077221]
[1717766538785,0.0821,71387.0,71386.0,0.2989659]
[1717766540136,0.0804,71393.0,71391.0,0.001]
[1717766540365,0.0804,71393.0,71386.0,0.2979659]
[1717766540366,0.0804,71393.0,71392.0,0.28577221]
[1717766540577,0.0804,71393.0,71392.0,0.29394026]
[1717766541254,0.00086,71399.0,71392.0,0.29394026]
[1717766541479,0.00086,71399.0,71393.0,0.14535328]
[1717766541715,0.00086,71399.0,71394.0,0.28977221]
[1717766541716,0.01,71398.0,71394.0,0.28977221]
[1717766541846,0.140062,71397.0,71395.0,0.14535328]
[1717766542216,0.00086,71399.0,71396.0,0.15349069]
[1717766542426,0.00086,71399.0,71396.0,0.00815535]
[1717766542579,0.00086,71399.0,71397.0,0.14533118]
[1717766542775,0.00086,71399.0,71388.0,0.140079]
[1717766542776,0.00086,71399.0,71398.0,0.14533118]
[1717766542981,0.00086,71399.0,71398.0,0.1534842]
[1717766544523,0.00086,71399.0,71398.0,0.1554842]
[1717766545501,0.00086,71399.0,71398.0,0.15548264]
[1717766546341,0.00086,71399.0,71398.0,0.15648264]
[1717766546946,0.160917,71399.0,71398.0,0.15648264]
[1717766547154,0.140917,71399.0,71398.0,0.15648264]
[1717766548504,0.160917,71399.0,71398.0,0.15648264]
[1717766548716,0.20408901,71399.0,71398.0,0.15648264]
[1717766548834,0.89830401,71399.0,71398.0,0.01115302]
[1717766549034,0.89830401,71399.0,71398.0,0.003]
[1717766549327,0.394517,71399.0,71398.0,0.003]
[1717766549492,0.384517,71399.0,71398.0,0.14833339]
[1717766549697,0.404517,71399.0,71398.0,0.14833339]
[1717766549969,0.404517,71399.0,71398.0,0.14633339]
[1717766550609,0.404517,71399.0,71398.0,0.001]
[1717766550812,0.02,71394.0,71392.0,0.00016861]
[1717766551057,0.42901185,71394.0,71393.0,0.14533738]
[1717766551387,0.42901185,71394.0,71393.0,0.15221547]
[1717766552073,0.402367,71394.0,71393.0,0.15221547]
[1717766552514,0.402367,71394.0,71393.0,0.14533738]
[1717766553649,0.682502,71394.0,71393.0,0.14733738]
[1717766553871,0.682502,71394.0,71392.0,0.00016861]
[1717766553872,0.21,71393.0,71392.0,0.00016861]
[1717766554112,0.93832854,71393.0,71392.0,0.00016861]
[1717766554495,1.13832854,71393.0,71392.0,0.00016861]
[1717766554770,0.93832854,71393.0,71392.0,0.00016861]
[1717766556466,1.13832854,71393.0,71392.0,0.00016861]
[1717766556843,0.93832854,71393.0,71392.0,0.00016861]
[1717766557049,1.13832854,71393.0,71392.0,0.00016861]
[1717766557267,0.93932854,71393.0,71392.0,0.00016861]
[1717766558564,1.41946754,71393.0,71392.0,0.00016861]
[1717766558791,1.41946754,71393.0,71372.0,0.000946]
[1717766558792,0.0769,71374.0,71372.0,0.000946]
[1717766559000,0.0769,71374.0,71373.0,0.14536727]
[1717766559608,0.0769,71374.0,71373.0,0.15562349]
[1717766560509,0.0769,71374.0,71373.0,0.15762349]
[1717766560976,0.237007,71374.0,71373.0,0.15762349]
[1717766561196,0.4667777,71374.0,71373.0,0.15762349]
[1717766561675,0.4667777,71374.0,71373.0,0.002]
[1717766561890,0.7469917,71374.0,71373.0,0.002]
[1717766562322,0.707221,71374.0,71373.0,0.002]
[1717766562528,0.707221,71374.0,71373.0,0.14738586]
[1717766562738,0.707221,71374.0,71373.0,0.002]
[1717766562940,0.707221,71374.0,71373.0,0.14738829]
[1717766563761,0.160109,71373.0,71372.0,0.000946]
[1717766563970,0.140109,71373.0,71372.0,0.14633135]
[1717766564420,0.2512,71381.0,71372.0,0.14633135]
[1717766564421,0.140103,71376.0,71372.0,0.14633135]
[1717766564594,0.02,71377.0,71373.0,0.14538535]
[1717766564835,0.02,71377.0,71374.0,0.14538535]
[1717766565038,0.140103,71376.0,71375.0,0.14538535]
[1717766565254,0.13993441,71376.0,71375.0,0.14538535]
[1717766565666,0.15993441,71376.0,71375.0,0.14538535]
[1717766565885,0.13993441,71376.0,71375.0,0.14538535]
[1717766566520,0.150106,71375.0,71372.0,0.002946]
[1717766566697,0.160106,71375.0,71372.0,0.002946]
[1717766566873,0.150106,71375.0,71373.0,0.1453741]
[1717766567057,0.150106,71375.0,71374.0,0.1453741]
[1717766567255,0.160106,71375.0,71374.0,0.1473741]
[1717766568463,0.160106,71375.0,71374.0,0.1453741]
[1717766568794,0.140106,71375.0,71374.0,0.1453741]
[1717766569039,0.140106,71375.0,71374.0,0.000946]
[1717766569408,0.140106,71375.0,71374.0,0.001946]
[1717766571292,0.140106,71375.0,71374.0,0.003946]
[1717766573252,0.160106,71375.0,71374.0,0.003946]
[1717766573862,0.140106,71375.0,71374.0,0.003946]
[1717766574342,0.150106,71375.0,71374.0,0.003946]
[1717766574549,0.140106,71375.0,71374.0,0.003946]
[1717766575091,0.160106,71375.0,71374.0,0.003946]
[1717766575296,0.150106,71375.0,71374.0,0.003946]
[1717766575946,0.140106,71375.0,71374.0,0.003946]
[1717766576151,0.140106,71375.0,71374.0,0.14932161]
[1717766577352,0.150106,71375.0,71374.0,0.14932161]
[1717766578020,0.160106,71375.0,71374.0,0.14932161]
[1717766578227,0.140106,71375.0,71374.0,0.14932161]
[1717766582142,0.140106,71375.0,71374.0,0.29374054]
[1717766583971,0.01654873,71381.0,71375.0,0.0793]
[1717766584229,0.155,71390.0,71377.0,0.1528]
[1717766584230,0.540086,71385.0,71377.0,0.1528]
[1717766584432,0.540086,71385.0,71378.0,0.14537561]
[1717766584585,0.540086,71385.0,71377.0,0.29721893]
[1717766584586,0.55726489,71385.0,71379.0,0.16603133]
[1717766584788,0.55726489,71385.0,71377.0,0.51528235]
[1717766584789,0.55726489,71385.0,71380.0,0.14537561]
[1717766584993,0.140088,71384.0,71380.0,0.14537561]
[1717766585213,0.140088,71384.0,71381.0,0.14537561]
[1717766585390,0.160088,71384.0,71382.0,0.14537561]
[1717766585589,0.140088,71384.0,71383.0,0.14537561]
[1717766586007,0.160088,71384.0,71383.0,0.14537561]
[1717766586932,0.160088,71384.0,71383.0,0.14737561]
[1717766587201,0.241588,71384.0,71383.0,0.14737561]
[1717766588272,0.241588,71384.0,71383.0,0.14637561]
[1717766588798,0.241588,71384.0,71383.0,0.14737561]
[1717766589163,0.241588,71384.0,71383.0,0.14837561]
[1717766589770,0.521762,71384.0,71383.0,0.14837561]
[1717766589966,0.77535609,71384.0,71383.0,0.14837561]
[1717766590600,0.94585609,71384.0,71383.0,0.14837561]
[1717766590756,0.94585609,71384.0,71383.0,0.13141761]
[1717766590963,1.14585609,71384.0,71383.0,0.13141761]
[1717766591170,1.42603009,71384.0,71383.0,0.13141761]
[1717766591367,1.67044902,71384.0,71383.0,0.13041761]
[1717766591575,0.160105,71375.0,71374.0,0.000946]
[1717766591802,0.402005,71375.0,71374.0,0.000946]
[1717766592914,0.382005,71375.0,71374.0,0.000946]
[1717766593239,0.402005,71375.0,71374.0,0.000946]
[1717766593432,0.402005,71375.0,71374.0,0.002946]
[1717766593943,0.682215,71375.0,71374.0,0.002946]
[1717766594683,0.82733287,71375.0,71374.0,0.001946]
[1717766595089,0.82733287,71375.0,71374.0,0.002946]
[1717766595289,1.02733287,71375.0,71374.0,0.001946]
[1717766595489,0.82733287,71375.0,71374.0,0.000946]
[1717766595689,0.82733287,71375.0,71374.0,0.001946]
[1717766596187,0.82733287,71375.0,71374.0,0.002946]
[1717766596410,0.82733287,71375.0,71374.0,0.000946]
[1717766596613,0.82833287,71375.0,71374.0,0.000946]
[1717766597648,0.81695623,71375.0,71374.0,0.000946]
[1717766598087,0.67183836,71375.0,71374.0,0.000946]
[1717766602033,0.68888721,71375.0,71374.0,0.000946]
[1717766603548,0.44698721,71375.0,71374.0,0.000946]
[1717766603755,0.42698721,71375.0,71374.0,0.000946]
[1717766603953,0.14677721,71375.0,71374.0,0.000946]
[1717766604154,0.14677721,71375.0,71374.0,0.079246]
[1717766604155,0.01804885,71375.0,71374.0,0.079246]
[1717766604318,0.01804885,71375.0,71374.0,0.39122686]
[1717766604522,0.15815385,71375.0,71374.0,0.39122686]
[1717766605256,0.17715385,71375.0,71374.0,0.14632686]
[1717766605683,0.17715385,71375.0,71374.0,0.14732686]
[1717766606116,0.15715385,71375.0,71374.0,0.14932686]
[1717766606713,0.15715385,71375.0,71374.0,0.1493213]
[1717766607715,0.15715385,71375.0,71374.0,0.3921213]
[1717766608119,0.01704885,71375.0,71374.0,0.3921213]
[1717766608295,0.140098,71379.0,71374.0,0.3921213]
[1717766608497,0.140098,71379.0,71375.0,0.1453753]
[1717766608727,0.140098,71379.0,71376.0,0.1453753]
[1717766608962,0.140098,71379.0,71377.0,0.1453753]
[1717766609098,0.140098,71379.0,71378.0,0.1453753]
[1717766610551,0.140098,71379.0,71378.0,0.1463753]
[1717766611383,0.140098,71379.0,71378.0,0.1453753]
[1717766612251,0.683292,71379.0,71378.0,0.1453753]
[1717766612504,0.833792,71379.0,71378.0,0.001]
[1717766612675,0.853792,71379.0,71378.0,0.001]
[1717766613119,0.350105,71375.0,71374.0,0.000946]
[1717766614958,0.350105,71375.0,71374.0,0.002946]
[1717766615313,0.630315,71375.0,71374.0,0.002946]
[1717766615713,0.630315,71375.0,71358.0,0.02069107]
[1717766615714,0.97208004,71375.0,71358.0,0.02069107]
[1717766615939,0.97208004,71375.0,71353.0,0.06188047]
[1717766615940,0.19,71359.0,71356.0,0.02069107]
[1717766616146,0.19,71359.0,71354.0,0.02069107]
[1717766616147,0.140144,71355.0,71354.0,0.02069107]
[1717766616352,0.140144,71355.0,71350.0,0.21188047]
[1717766616353,0.140144,71355.0,71350.0,0.15]
[1717766616944,0.140144,71355.0,71350.0,0.17069107]
[1717766617346,0.140144,71355.0,71350.0,0.15]
[1717766617702,0.140144,71355.0,71350.0,0.152]
[1717766618219,0.140144,71355.0,71350.0,0.15]
[1717766618346,0.140144,71355.0,71350.0,0.152]
[1717766618980,0.19,71359.0,71350.0,0.152]
[1717766618981,0.140147,71354.0,71350.0,0.152]
[1717766619356,0.140147,71354.0,71350.0,0.153]
[1717766619947,0.140147,71354.0,71350.0,0.15]